bitfinex-derivatives/quotes_BTCF0:USTF0_20250719
["timestamp","ask_amount","ask_price","bid_price","bid_amount"]
[1752941315606,1.09016,118020.0,118010.0,0.3340823]
[1752941315810,1.45096,118020.0,118010.0,0.3340823]
[1752941316006,1.4518,118020.0,118010.0,0.3340823]
[1752941316415,1.45096,118020.0,118010.0,0.3340823]
[1752941317612,1.75271283,118020.0,118010.0,0.3018723]
[1752941317814,1.75271283,118020.0,118010.0,0.2945323]
[1752941318916,1.77011135,118020.0,118010.0,0.2698523]
[1752941319319,1.55293022,118020.0,118010.0,0.2698523]
[1752941319522,1.77011135,118020.0,118010.0,0.2698523]
[1752941320120,1.77111135,118020.0,118010.0,0.2698523]
[1752941320419,1.77111135,118020.0,118010.0,0.2558323]
[1752941321920,1.77211135,118020.0,118010.0,0.2558323]
[1752941322620,1.77211135,118020.0,118010.0,0.2698523]
[1752941328725,2.13291135,118020.0,118010.0,0.2698523]
[1752941330022,2.04932965,118020.0,118010.0,0.2698523]
[1752941330225,2.13291135,118020.0,118010.0,0.2698523]
[1752941336730,1.91573022,118020.0,118010.0,0.2698523]
[1752941336932,2.13291135,118020.0,118010.0,0.2698523]
[1752941338431,2.30230145,118020.0,118010.0,0.2698523]
[1752941341031,2.30230145,118020.0,118010.0,0.2558323]
[1752941341032,2.13291135,118020.0,118010.0,0.2558323]
[1752941341230,1.91573022,118020.0,118010.0,0.2721923]
[1752941341729,2.13291135,118020.0,118010.0,0.2721923]
[1752941342929,2.30230145,118020.0,118010.0,0.2721923]
[1752941343431,2.13291135,118020.0,118010.0,0.2721923]
[1752941345934,1.91573022,118020.0,118010.0,0.2721923]
[1752941346335,2.13291135,118020.0,118010.0,0.2721923]
[1752941347036,2.24162882,118020.0,118010.0,0.2721923]
[1752941352942,2.41101892,118020.0,118010.0,0.2721923]
[1752941353540,2.08512032,118020.0,118010.0,0.2721923]
[1752941353742,2.41101892,118020.0,118010.0,0.2721923]
[1752941354349,2.24162882,118020.0,118010.0,0.4351416]
[1752941354833,2.41101892,118020.0,118010.0,0.2558323]
[1752941355641,2.41101892,118020.0,118010.0,0.2721923]
[1752941356455,2.08512032,118020.0,118010.0,0.2721923]
[1752941356645,2.41101892,118020.0,118010.0,0.2721923]
[1752941365952,2.08512032,118020.0,118010.0,0.2721923]
[1752941366251,2.41101892,118020.0,118010.0,0.2721923]
[1752941368654,2.41103359,118020.0,118010.0,0.2721923]
[1752941372558,2.08513499,118020.0,118010.0,0.2721923]
[1752941372753,2.41103359,118020.0,118010.0,0.2721923]
[1752941373959,2.08513499,118020.0,118010.0,0.2721923]
[1752941374153,2.41103359,118020.0,118010.0,0.2721923]
[1752941379565,2.08513499,118020.0,118010.0,0.2721923]
[1752941379865,2.41103359,118020.0,118010.0,0.2721923]
[1752941384063,2.24164349,118020.0,118010.0,0.2721923]
[1752941386169,2.41103369,118020.0,118010.0,0.2721923]
[1752941386869,2.24164349,118020.0,118010.0,0.2721923]
[1752941387870,1.91574489,118020.0,118010.0,0.2721923]
[1752941388067,2.24164349,118020.0,118010.0,0.2979923]
[1752941389577,2.41103369,118020.0,118010.0,0.2979923]
[1752941389971,2.41071369,118020.0,118010.0,0.2979923]
[1752941390369,1.82087369,118020.0,118010.0,0.2979923]
[1752941390570,2.41071369,118020.0,118010.0,0.2979923]
[1752941390770,1.82087369,118020.0,118010.0,0.2979923]
[1752941390973,2.41071369,118020.0,118010.0,0.2979923]
[1752941391774,1.82087369,118020.0,118010.0,0.2979923]
[1752941392073,2.41071369,118020.0,118010.0,0.2979923]
[1752941392374,1.82087369,118020.0,118010.0,0.2979923]
[1752941392574,2.41067369,118020.0,118010.0,0.2979923]
[1752941392775,1.82087369,118020.0,118010.0,0.2979923]
[1752941392978,2.41067369,118020.0,118010.0,0.2979923]
[1752941393473,1.82087369,118020.0,118010.0,0.2979923]
[1752941393674,2.41067369,118020.0,118010.0,0.2979923]
[1752941394875,2.08477509,118020.0,118010.0,0.2979923]
[1752941395075,2.41067369,118020.0,118010.0,0.2979923]
[1752941398978,2.08477509,118020.0,118010.0,0.2979923]
[1752941399277,2.41067369,118020.0,118010.0,0.2979923]
[1752941399569,2.24772439,118020.0,118010.0,0.2979923]
[1752941399790,2.41067369,118020.0,118010.0,0.2979923]
[1752941401981,2.08477509,118020.0,118010.0,0.2979923]
[1752941402276,2.41067369,118020.0,118010.0,0.2979923]
[1752941407880,2.08477509,118020.0,118010.0,0.2979923]
[1752941408181,2.41067369,118020.0,118010.0,0.2979923]
[1752941409283,2.08477509,118020.0,118010.0,0.2979923]
[1752941409484,2.41067369,118020.0,118010.0,0.2979923]
[1752941411784,2.08477509,118020.0,118010.0,0.2979923]
[1752941411984,2.41067369,118020.0,118010.0,0.2979923]
[1752941413086,2.41067369,118020.0,118010.0,0.3312023]
[1752941418698,1.68907369,118020.0,118010.0,0.3312023]
[1752941418900,2.41067369,118020.0,118010.0,0.3312023]
[1752941419092,1.24200319,118020.0,118010.0,0.3388123]
[1752941419309,1.91415489,118020.0,118010.0,0.5017616]
[1752941419495,0.51941319,118020.0,118010.0,0.5017616]
[1752941419816,1.02446939,118020.0,118010.0,0.6647109]
[1752941419994,0.27757569,118020.0,118010.0,0.9564109]
[1752941420195,0.80960989,118020.0,118010.0,0.9564109]
[1752941420598,0.80860989,118020.0,118010.0,0.9564109]
[1752941420895,0.60793319,118020.0,118010.0,0.9564109]
[1752941421090,0.60693319,118020.0,118010.0,0.9564109]
[1752941421291,0.59052,118020.0,118010.0,0.9574109]
[1752941421500,0.59052,118020.0,118010.0,1.3182109]
[1752941421898,0.59052,118020.0,118010.0,1.37908782]
[1752941422101,0.58952,118020.0,118010.0,1.37908782]
[1752941422301,0.58952,118020.0,118010.0,1.3182109]
[1752941423706,0.58952,118020.0,118010.0,1.4876829]
[1752941423900,0.58952,118020.0,118010.0,1.54855982]
[1752941424408,0.58952,118020.0,118010.0,1.4876829]
[1752941426204,0.58952,118020.0,118010.0,1.1617843]
[1752941426405,0.58952,118020.0,118010.0,1.4876829]
[1752941429102,0.3608,118030.0,118020.0,0.2883501]
[1752941429303,0.95016,118030.0,118020.0,0.6684387]
[1752941429906,0.95012,118030.0,118020.0,0.6684387]
[1752941430099,1.45012,118030.0,118020.0,0.6684387]
[1752941430300,1.45112,118030.0,118020.0,0.6684387]
[1752941430501,1.45112,118030.0,118020.0,0.3425401]
[1752941430710,1.6140693,118030.0,118020.0,0.3425401]
[1752941431006,1.6140693,118030.0,118020.0,0.6684387]
[1752941431208,1.45112,118030.0,118020.0,0.6684387]
[1752941438116,1.45112,118030.0,118020.0,0.3425401]
[1752941438613,1.45112,118030.0,118020.0,0.6684387]
[1752941439311,1.45112,118030.0,118020.0,0.3425401]
[1752941439513,1.45112,118030.0,118020.0,0.6684387]
[1752941440712,1.09032,118030.0,118020.0,0.6684387]
[1752941440935,1.45112,118030.0,118020.0,0.6684387]
[1752941442113,1.6140693,118030.0,118020.0,0.3425401]
[1752941442405,1.6140693,118030.0,118020.0,0.3093201]
[1752941442406,1.9748693,118030.0,118020.0,0.3093201]
[1752941442609,2.00717753,118030.0,118020.0,0.2616301]
[1752941442814,2.09075923,118030.0,118020.0,0.2616301]
[1752941444013,2.09075923,118030.0,118020.0,0.4245794]
[1752941444413,2.09075923,118030.0,118020.0,0.4395294]
[1752941447515,1.92780993,118030.0,118020.0,0.4395294]
[1752941447716,2.09075923,118030.0,118020.0,0.4395294]
[1752941448616,1.92780993,118030.0,118020.0,0.4395294]
[1752941448814,2.09075923,118030.0,118020.0,0.4395294]
[1752941453320,2.09075923,118030.0,118020.0,0.2765801]
[1752941453521,2.09075923,118030.0,118020.0,0.4395294]
[1752941453715,2.26013533,118030.0,118020.0,0.2765801]
[1752941454112,2.26013533,118030.0,118020.0,0.1693901]
[1752941456322,2.26013533,118030.0,118020.0,0.2601601]
[1752941457523,2.09075923,118030.0,118020.0,0.2601601]
[1752941458124,2.09075923,118030.0,118020.0,0.2754301]
[1752941458323,2.26013533,118030.0,118020.0,0.2754301]
[1752941459025,2.09718603,118030.0,118020.0,0.2754301]
[1752941459325,2.26013533,118030.0,118020.0,0.2754301]
[1752941460928,2.26013533,118030.0,118020.0,0.1693901]
[1752941461124,2.42308463,118030.0,118020.0,0.1693901]
[1752941461332,2.42308463,118030.0,118020.0,0.1677001]
[1752941461528,2.4056864,118030.0,118020.0,0.1578701]
[1752941461729,2.42310015,118030.0,118020.0,0.1578701]
[1752941467028,2.42310015,118030.0,118000.0,0.2541132]
[1752941467029,0.1694049,118010.0,118000.0,0.2541132]
[1752941467238,0.1694192,118000.0,117990.0,0.344909]
[1752941467431,0.95711325,118000.0,117990.0,0.344909]
[1752941468532,1.45711325,118000.0,117990.0,0.344909]
[1752941468738,1.13421465,118000.0,117990.0,0.344909]
[1752941468931,1.46011325,118000.0,117990.0,0.344909]
[1752941469234,1.46011325,118000.0,117990.0,0.360179]
[1752941470637,1.46211325,118000.0,117990.0,0.360179]
[1752941472242,1.13621465,118000.0,117990.0,0.360179]
[1752941472433,1.46211325,118000.0,117990.0,0.360179]
[1752941472738,1.88812395,118000.0,117990.0,0.5912683]
[1752941473340,2.05107325,118000.0,117990.0,0.428319]
[1752941473536,1.88165405,118000.0,117990.0,0.428319]
[1752941474641,1.71870475,118000.0,117990.0,0.428319]
[1752941475143,1.71870475,118000.0,117990.0,0.5912683]
[1752941475333,1.12974475,118000.0,117990.0,0.5912683]
[1752941475535,1.47213375,118000.0,117990.0,0.5912683]
[1752941475840,1.63508305,118000.0,117990.0,0.5912683]
[1752941476839,1.63308305,118000.0,117990.0,0.5912683]
[1752941477040,1.63408305,118000.0,117990.0,0.5912683]
[1752941477740,1.63108305,118000.0,117990.0,0.5912683]
[1752941478040,1.47013375,118000.0,117990.0,0.5912683]
[1752941478236,0.88121375,118000.0,117990.0,0.5912683]
[1752941478442,1.44656645,118000.0,117990.0,0.7542176]
[1752941478741,0.9751911,118000.0,117990.0,1.1150176]
[1752941479040,0.9361677,118000.0,117990.0,0.7542176]
[1752941480342,0.9351677,118000.0,117990.0,0.5912683]
[1752941480543,0.9361677,118000.0,117990.0,0.5912683]
[1752941481042,0.9361677,118000.0,117990.0,0.64559978]
[1752941481243,0.9351677,118000.0,117990.0,0.64559978]
[1752941481742,0.9331677,118000.0,117990.0,0.64559978]
[1752941482143,0.3442477,118000.0,117990.0,0.64559978]
[1752941482337,0.9331277,118000.0,117990.0,0.64559978]
[1752941485946,0.9330877,118000.0,117990.0,0.64559978]
[1752941486350,0.9330877,118000.0,117990.0,0.428319]
[1752941486546,0.9330877,118000.0,117990.0,0.64559978]
[1752941486741,0.9330877,118000.0,117990.0,0.428319]
[1752941486940,0.9330877,118000.0,117990.0,0.64559978]
[1752941488046,0.3442477,118000.0,117990.0,0.64559978]
[1752941488344,0.9330477,118000.0,117990.0,0.64559978]
[1752941491940,0.9355177,118000.0,117990.0,0.64559978]
[1752941493249,0.9397977,118000.0,117990.0,0.64559978]
[1752941495347,1.3005977,118000.0,117990.0,0.428319]
[1752941495552,1.3005977,118000.0,117990.0,0.64559978]
[1752941495852,1.3048077,118000.0,117990.0,0.428319]
[1752941496052,1.3883894,118000.0,117990.0,0.428319]
[1752941498047,1.0275894,118000.0,117990.0,0.428319]
[1752941498346,1.0275894,118000.0,117990.0,0.64559978]
[1752941498347,1.0233794,118000.0,117990.0,0.64559978]
[1752941498657,1.3841794,118000.0,117990.0,0.64559978]
[1752941499455,1.3840594,118000.0,117990.0,0.64559978]
[1752941502458,1.3854294,118000.0,117990.0,0.64559978]
[1752941502659,1.3856694,118000.0,117990.0,0.64559978]
[1752941503654,1.5550886,118000.0,117990.0,0.428319]
[1752941503960,1.57251939,118000.0,117990.0,0.428319]
[1752941504454,1.40310019,118000.0,117990.0,0.428319]
[1752941505361,0.81442019,118000.0,117990.0,0.428319]
[1752941505555,1.40306019,118000.0,117990.0,0.428319]
[1752941507359,0.81442019,118000.0,117990.0,0.428319]
[1752941507560,1.40302019,118000.0,117990.0,0.428319]
[1752941507957,1.40278019,118000.0,117990.0,0.428319]
[1752941508154,1.40278019,118000.0,117990.0,0.64559978]
[1752941510159,1.40283019,118000.0,117990.0,0.64559978]
[1752941510558,1.57224939,118000.0,117990.0,0.64559978]
[1752941510861,1.40283019,118000.0,117990.0,0.64559978]
[1752941513061,1.57224939,118000.0,117990.0,0.64559978]
[1752941514564,1.57224939,118000.0,117990.0,0.428319]
[1752941516959,1.73524028,118000.0,117990.0,0.59130989]
[1752941517156,1.65165858,118000.0,117990.0,0.59130989]
[1752941517464,1.73524028,118000.0,117990.0,0.59130989]
[1752941518565,1.57224939,118000.0,117990.0,0.59130989]
[1752941518765,1.73519028,118000.0,117990.0,0.59130989]
[1752941519866,1.56577108,118000.0,117990.0,0.59130989]
[1752941520866,1.73519028,118000.0,117990.0,0.59130989]
[1752941521068,1.57219939,118000.0,117990.0,0.59130989]
[1752941521267,1.73519028,118000.0,117990.0,0.59130989]
[1752941521767,1.14659028,118000.0,117990.0,0.59130989]
[1752941521974,0.81418019,118000.0,117990.0,0.59130989]
[1752941522165,1.40129019,118000.0,117990.0,0.59130989]
[1752941526870,1.03370019,118000.0,117990.0,0.75430078]
[1752941527066,0.32784239,118000.0,117990.0,1.27809167]
[1752941527266,0.36129,118020.0,118010.0,0.3460649]
[1752941527462,1.0332717,118020.0,118010.0,0.67204668]
[1752941527872,1.0332717,118020.0,118010.0,0.50905579]
[1752941528474,1.0342717,118020.0,118010.0,0.50905579]
[1752941529068,1.0342717,118020.0,118010.0,0.56327532]
[1752941529673,1.5362717,118020.0,118010.0,0.56327532]
[1752941530373,1.5362717,118020.0,118010.0,0.3460649]
[1752941530875,1.5362717,118020.0,118010.0,0.56327532]
[1752941537872,0.86405,118020.0,118010.0,0.56327532]
[1752941538076,1.4306948,118020.0,118010.0,0.56327532]
[1752941538281,0.9176934,118020.0,118010.0,0.60903441]
[1752941538482,0.7809883,118020.0,118010.0,0.60903441]
[1752941538777,0.42736513,118040.0,118030.0,0.1693761]
[1752941538979,1.09967683,118040.0,118030.0,0.56324652]
[1752941539180,1.11675537,118040.0,118030.0,0.56324652]
[1752941539576,1.11675537,118040.0,118030.0,0.57191673]
[1752941540176,1.14015537,118040.0,118030.0,0.57191673]
[1752941540481,1.53617367,118040.0,118030.0,0.57191673]
[1752941540780,1.61975537,118040.0,118030.0,0.57191673]
[1752941540980,1.62375537,118040.0,118030.0,0.57191673]
[1752941541875,1.47360854,118040.0,118030.0,0.57191673]
[1752941542182,1.45653,118040.0,118030.0,0.57191673]
[1752941543982,0.4849688,118040.0,118030.0,0.57191673]
[1752941544182,1.0468288,118040.0,118030.0,0.61767582]
[1752941544384,0.59516,118040.0,118030.0,0.61767582]
[1752941546582,0.59516,118040.0,118030.0,0.90937582]
[1752941547483,0.59116,118040.0,118030.0,0.90937582]
[1752941547777,0.58816,118040.0,118030.0,0.91037582]
[1752941548083,0.43552,118060.0,118050.0,0.3794477]
[1752941548278,1.1549117,118060.0,118050.0,0.59665812]
[1752941548678,1.6549117,118060.0,118050.0,0.59665812]
[1752941549584,1.6569117,118060.0,118050.0,0.51393812]
[1752941549882,1.0708317,118060.0,118050.0,0.51393812]
[1752941550082,1.6588717,118060.0,118050.0,0.51393812]
[1752941551681,1.72772508,118060.0,118050.0,0.54517812]
[1752941552479,1.89705838,118060.0,118050.0,0.54517812]
[1752941552684,1.72772508,118060.0,118050.0,0.2779277]
[1752941553384,1.72772508,118060.0,118050.0,0.2967277]
[1752941555195,1.72772508,118060.0,118050.0,0.2779277]
[1752941555389,2.1142688,118060.0,118050.0,0.1693477]
[1752941555979,2.1142688,118060.0,118050.0,0.1623277]
[1752941556388,2.13127313,118060.0,118050.0,0.1623277]
[1752941557788,1.91406271,118060.0,118050.0,0.1623277]
[1752941557987,2.13127313,118060.0,118050.0,0.1623277]
[1752941562690,1.91406271,118060.0,118050.0,0.1623277]
[1752941562886,2.13127313,118060.0,118050.0,0.1623277]
[1752941563387,2.13127313,118060.0,118050.0,0.2709077]
[1752941563789,1.91406271,118060.0,118050.0,0.2709077]
[1752941565792,1.74472941,118060.0,118050.0,0.2897077]
[1752941565994,1.74472941,118060.0,118050.0,0.50691812]
[1752941566394,1.74472941,118060.0,118050.0,0.53815812]
[1752941567094,1.91406431,118060.0,118050.0,0.53815812]
[1752941567294,1.32602431,118060.0,118050.0,0.54714812]
[1752941567493,1.91386431,118060.0,118050.0,0.58963812]
[1752941568095,1.91386431,118060.0,118050.0,0.3724277]
[1752941568995,1.74452941,118060.0,118050.0,0.3724277]
[1752941570296,1.91386431,118060.0,118050.0,0.3724277]
[1752941571296,1.91386431,118060.0,118050.0,0.2897077]
[1752941572805,1.91386431,118060.0,118050.0,0.1623277]
[1752941573595,1.91386431,118060.0,118050.0,0.2719977]
[1752941574696,2.16801763,118060.0,118050.0,0.1693492]
[1752941574999,0.1693492,118050.0,118040.0,0.42492245]
[1752941575197,0.90937565,118050.0,118040.0,0.27291435]
[1752941575502,0.93120565,118050.0,118040.0,0.25635435]
[1752941576801,1.43120565,118050.0,118040.0,0.25635435]
[1752941577202,1.43220565,118050.0,118040.0,0.25635435]
[1752941577402,1.21599523,118050.0,118040.0,0.36602435]
[1752941577602,1.21599523,118050.0,118040.0,0.38485435]
[1752941581204,1.21599523,118050.0,118040.0,0.3659676]
[1752941581613,1.21599523,118050.0,118040.0,0.3471376]
[1752941581899,1.43320565,118050.0,118040.0,0.3471376]
[1752941584207,1.21599523,118050.0,118040.0,0.3471376]
[1752941584407,1.43320565,118050.0,118040.0,0.3471376]
[1752941586303,1.43320565,118050.0,118040.0,0.3659676]
[1752941586609,1.21599523,118050.0,118040.0,0.3659676]
[1752941586802,1.43320565,118050.0,118040.0,0.3659676]
[1752941589711,1.21599523,118050.0,118040.0,0.3659676]
[1752941589911,1.43320565,118050.0,118040.0,0.3659676]
[1752941592612,1.34962395,118050.0,118040.0,0.3659676]
[1752941592817,1.79400565,118050.0,118040.0,0.3659676]
[1752941593219,1.57679523,118050.0,118040.0,0.3659676]
[1752941593515,1.79400565,118050.0,118040.0,0.3659676]
[1752941596915,1.73967757,118050.0,118040.0,0.52884994]
[1752941597418,1.72267324,118050.0,118040.0,0.52884994]
[1752941597619,1.73957878,118050.0,118040.0,0.52884994]
[1752941598520,1.72267324,118050.0,118040.0,0.52884994]
[1752941598721,1.73958032,118050.0,118040.0,0.52884994]
[1752941599324,1.73958032,118050.0,118040.0,0.3659676]
[1752941599516,1.73958032,118050.0,118040.0,0.52884994]
[1752941601517,1.73958032,118050.0,118040.0,0.3659676]
[1752941603822,1.73958032,118050.0,118040.0,0.52884994]
[1752941604318,1.73958032,118050.0,118040.0,0.3659676]
[1752941608939,1.57669798,118050.0,118040.0,0.3659676]
[1752941609128,1.73958032,118050.0,118040.0,0.3659676]
[1752941612430,1.74817765,118050.0,118040.0,0.3659676]
[1752941612731,1.02657765,118050.0,118040.0,0.3659676]
[1752941612932,1.74817765,118050.0,118040.0,0.3659676]
[1752941613234,1.73958032,118050.0,118040.0,0.3659676]
[1752941613530,1.74811296,118050.0,118040.0,0.3659676]
[1752941613731,1.73958032,118050.0,118040.0,0.3659676]
[1752941614333,1.57669798,118050.0,118040.0,0.3659676]
[1752941614830,1.73958032,118050.0,118040.0,0.3967976]
[1752941615027,1.65599862,118050.0,118040.0,0.55967994]
[1752941615228,2.32698032,118050.0,118040.0,0.60794994]
[1752941615732,2.32698032,118050.0,118040.0,0.4450676]
[1752941615933,2.32698032,118050.0,118040.0,0.60794994]
[1752941619834,1.54840112,118050.0,118040.0,0.60794994]
[1752941620038,2.13576112,118050.0,118040.0,0.60794994]
[1752941620737,2.30511032,118050.0,118040.0,0.60794994]
[1752941620938,2.32498032,118050.0,118040.0,0.60794994]
[1752941621536,2.32498032,118050.0,118040.0,0.4450676]
[1752941621741,2.32498032,118050.0,118040.0,0.60794994]
[1752941622037,2.32498032,118050.0,118040.0,0.3236295]
[1752941622233,0.1693636,118040.0,118030.0,0.2061632]
[1752941622439,1.00807706,118040.0,118030.0,0.4236306]
[1752941622640,0.92449536,118040.0,118030.0,0.3812862]
[1752941622840,1.00807706,118040.0,118030.0,0.3812862]
[1752941623534,1.00807706,118040.0,118030.0,0.3822862]
[1752941623738,1.00807706,118040.0,118030.0,0.3031562]
[1752941624035,1.42449536,118040.0,118030.0,0.2608118]
[1752941624240,1.50807706,118040.0,118030.0,0.2184674]
[1752941624441,1.18231238,118040.0,118030.0,0.2184674]
[1752941624640,1.50807706,118040.0,118030.0,0.2791074]
[1752941624946,1.50907706,118040.0,118030.0,0.2791074]
[1752941625241,1.51007706,118040.0,118030.0,0.2781074]
[1752941625741,1.51407706,118040.0,118030.0,0.2781074]
[1752941627643,1.51407706,118040.0,118030.0,0.2965974]
[1752941631438,1.51407706,118040.0,118030.0,0.10874]
[1752941631745,0.2152678,118030.0,118020.0,0.39317004]
[1752941631940,1.42663892,118030.0,118020.0,0.39317004]
[1752941632144,1.42663892,118030.0,118020.0,0.35082254]
[1752941632645,1.92663892,118030.0,118020.0,0.35082254]
[1752941632947,1.92763892,118030.0,118020.0,0.35082254]
[1752941633445,1.92863892,118030.0,118020.0,0.3318775]
[1752941633639,0.197632,118020.0,118010.0,0.53392894]
[1752941633844,0.75587142,118020.0,118010.0,0.66107894]
[1752941635143,0.59298908,118020.0,118010.0,0.4981966]
[1752941635343,0.75587142,118020.0,118010.0,0.4981966]
[1752941635948,1.25587142,118020.0,118010.0,0.66107894]
[1752941636841,1.23822142,118020.0,118010.0,0.4981966]
[1752941637040,1.23822142,118020.0,118010.0,0.66107894]
[1752941637242,1.07533908,118020.0,118010.0,0.66107894]
[1752941637446,1.23822142,118020.0,118010.0,0.66107894]
[1752941637947,0.87770708,118020.0,118010.0,0.66107894]
[1752941638137,1.46482708,118020.0,118010.0,0.66107894]
[1752941638343,1.4648267,118020.0,118010.0,0.66107894]
[1752941639046,1.4648267,118020.0,118010.0,0.4981966]
[1752941639247,1.4648267,118020.0,118010.0,0.66107894]
[1752941639747,1.44792,118020.0,118010.0,0.66107894]
[1752941640449,1.46482554,118020.0,118010.0,0.66107894]
[1752941640649,1.46482555,118020.0,118010.0,0.66107894]
[1752941640846,1.46482555,118020.0,118010.0,0.4981966]
[1752941641039,1.44788,118020.0,118010.0,0.71541949]
[1752941641240,0.8369329,118020.0,118010.0,0.71541949]
[1752941641448,1.4240129,118020.0,118010.0,0.78541949]
[1752941641954,0.9900642,118020.0,118010.0,1.14621949]
[1752941642142,0.8740987,118020.0,118010.0,1.14621949]
[1752941642348,0.7606175,118020.0,118010.0,1.14621949]
[1752941642544,0.3608,118040.0,118030.0,0.2107978]
[1752941642745,0.96474728,118040.0,118030.0,0.58835069]
[1752941642949,0.60394728,118040.0,118030.0,0.58835069]
[1752941643251,0.96474728,118040.0,118030.0,0.58835069]
[1752941644149,0.96474728,118040.0,118030.0,0.3711278]
[1752941644350,0.96474728,118040.0,118030.0,0.58835069]
[1752941644549,1.46474728,118040.0,118030.0,0.58835069]
[1752941647752,1.10394728,118040.0,118030.0,0.58835069]
[1752941647948,1.46474728,118040.0,118030.0,0.3711278]
[1752941648152,1.46474728,118040.0,118030.0,0.58835069]
[1752941653355,0.94435728,118040.0,118030.0,0.58835069]
[1752941653556,1.53119728,118040.0,118030.0,0.58835069]
[1752941654258,1.46454728,118040.0,118030.0,0.58835069]
[1752941655361,1.44764,118040.0,118030.0,0.3711278]
[1752941655555,1.5258868,118040.0,118030.0,0.3711278]
[1752941655757,1.6268285,118040.0,118030.0,0.3711278]
[1752941655958,1.7961919,118040.0,118030.0,0.3711278]
[1752941657059,1.6268285,118040.0,118030.0,0.58835069]
[1752941658363,1.6099017,118040.0,118030.0,0.58835069]
[1752941658556,1.779265,118040.0,118030.0,0.58835069]
[1752941660462,1.79618781,118040.0,118030.0,0.58835069]
[1752941665872,1.79618781,118040.0,118030.0,0.3711278]
[1752941666071,1.79618781,118040.0,118030.0,0.58835069]
[1752941667169,1.62682451,118040.0,118030.0,0.58835069]
[1752941668068,1.79618781,118040.0,118030.0,0.58835069]
[1752941670275,1.62682451,118040.0,118030.0,0.58835069]
[1752941670876,1.79618781,118040.0,118030.0,0.58835069]
[1752941671077,1.79618781,118040.0,118030.0,0.3711278]
[1752941671276,1.79618781,118040.0,118030.0,0.53400193]
[1752941672873,2.15698781,118040.0,118030.0,0.53400193]
[1752941673074,1.98762451,118040.0,118030.0,0.53400193]
[1752941674075,2.1569907,118040.0,118030.0,0.53400193]
[1752941678678,2.1569907,118040.0,118030.0,0.3711278]
[1752941678883,2.31986483,118040.0,118030.0,0.53400193]
[1752941684088,2.1569907,118040.0,118030.0,0.53400193]
[1752941684288,2.1569907,118040.0,118030.0,0.57976102]
[1752941688285,2.1569907,118040.0,118030.0,0.53400193]
[1752941688486,2.1569907,118040.0,118030.0,0.57976102]
[1752941693991,2.1569907,118040.0,118030.0,0.41688689]
[1752941694192,2.1569907,118040.0,118030.0,0.57976102]
[1752941696099,2.31986483,118040.0,118030.0,0.41688689]
[1752941696298,2.31986483,118040.0,118030.0,0.57976102]
[1752941697502,2.31986483,118040.0,118030.0,0.41688689]
[1752941697802,2.31986483,118040.0,118030.0,0.57976102]
[1752941698194,2.31986483,118040.0,118030.0,0.37801102]
[1752941698402,0.3577975,118030.0,118020.0,0.63586052]
[1752941698702,0.3577975,118030.0,118020.0,0.58984052]
[1752941698703,0.98197903,118030.0,118020.0,0.58984052]
[1752941699500,0.98197903,118030.0,118020.0,0.3812073]
[1752941699725,0.98197903,118030.0,118020.0,0.0189175]
[1752941700003,1.14485316,118030.0,118020.0,0.1672694]
[1752941700205,1.14485316,118030.0,118020.0,0.1671794]
[1752941700400,0.98497903,118030.0,118020.0,0.1681794]
[1752941700896,1.48497903,118030.0,118020.0,0.1681794]
[1752941701100,1.48497903,118030.0,118020.0,0.1671794]
[1752941701401,0.2473819,118020.0,118010.0,0.5013455]
[1752941701601,0.2473819,118020.0,118010.0,0.33847137]
[1752941701602,1.70013756,118020.0,118010.0,0.33847137]
[1752941701801,1.70013756,118020.0,118010.0,0.5013455]
[1752941702002,1.70013756,118020.0,118010.0,0.3199636]
[1752941702003,1.53726343,118020.0,118010.0,0.3199636]
[1752941702204,1.53726343,118020.0,118010.0,0.48283773]
[1752941702401,1.3743893,118020.0,118010.0,0.3199636]
[1752941702605,1.70013756,118020.0,118010.0,0.3199636]
[1752941702901,1.70871296,118020.0,118010.0,0.2117427]
[1752941703105,2.20013756,118020.0,118010.0,0.2117427]
[1752941703610,2.03826343,118020.0,118010.0,0.37461683]
[1752941703821,2.03826343,118020.0,118010.0,0.44048683]
[1752941704007,2.03926343,118020.0,118010.0,0.44048683]
[1752941704209,2.20213756,118020.0,118010.0,0.2776127]
[1752941704409,1.8763893,118020.0,118010.0,0.2776127]
[1752941704706,2.03926343,118020.0,118010.0,0.59327683]
[1752941705307,1.8763893,118020.0,118010.0,0.59327683]
[1752941705609,2.03922343,118020.0,118010.0,0.59327683]
[1752941707503,1.8763493,118020.0,118010.0,0.59327683]
[1752941707807,2.03922343,118020.0,118010.0,0.59327683]
[1752941710505,1.86983153,118020.0,118010.0,0.59327683]
[1752941710706,2.03922313,118020.0,118010.0,0.59327683]
[1752941712911,2.03922313,118020.0,118010.0,0.4304027]
[1752941713106,2.03922313,118020.0,118010.0,0.59327683]
[1752941715521,1.876349,118020.0,118010.0,0.59327683]
[1752941715720,2.03922313,118020.0,118010.0,0.59327683]
[1752941719021,1.0372157,118020.0,118010.0,0.59327683]
[1752941719222,1.6766074,118020.0,118010.0,0.59327683]
[1752941720623,1.875069,118020.0,118010.0,0.59327683]
[1752941720823,1.7056774,118020.0,118010.0,0.59327683]
[1752941724828,1.875069,118020.0,118010.0,0.59327683]
[1752941725022,1.7914873,118020.0,118010.0,0.59327683]
[1752941725219,1.875069,118020.0,118010.0,0.59327683]
[1752941725731,1.7056774,118020.0,118010.0,0.59327683]
[1752941727630,1.6766074,118020.0,118010.0,0.59327683]
[1752941728728,1.7056774,118020.0,118010.0,0.59327683]
[1752941729330,1.5406757,118020.0,118010.0,0.59327683]
[1752941729523,1.5866957,118020.0,118010.0,0.59327683]
[1752941730129,1.5866957,118020.0,118010.0,0.4304027]
[1752941730326,1.6157657,118020.0,118010.0,0.59327683]
[1752941731131,1.6993474,118020.0,118010.0,0.59327683]
[1752941731332,1.6702774,118020.0,118010.0,0.59327683]
[1752941731633,1.8687389,118020.0,118010.0,0.59327683]
[1752941732933,2.03161303,118020.0,118010.0,0.59327683]
[1752941733834,1.67081303,118020.0,118010.0,0.59327683]
[1752941734029,1.94803133,118020.0,118010.0,0.59327683]
[1752941734333,2.03161303,118020.0,118010.0,0.59327683]
[1752941734632,2.03161303,118020.0,118010.0,0.46051683]
[1752941735431,2.03161303,118020.0,118010.0,0.50693683]
[1752941736234,2.19448716,118020.0,118010.0,0.44048683]
[1752941736539,2.03161303,118020.0,118010.0,0.2117427]
[1752941736733,2.19448716,118020.0,118010.0,0.2117427]
[1752941741439,1.8687389,118020.0,118010.0,0.2117427]
[1752941741641,2.19448716,118020.0,118010.0,0.2117427]
[1752941741841,1.8687389,118020.0,118010.0,0.2117427]
[1752941742140,2.19448716,118020.0,118010.0,0.2117427]
[1752941744940,2.19448716,118020.0,118010.0,0.1693933]
[1752941745737,0.1694059,118010.0,118000.0,0.5118592]
[1752941745940,0.94096743,118010.0,118000.0,0.67473333]
[1752941746138,0.85738573,118010.0,118000.0,0.08386]
[1752941746338,0.3168003,118000.0,117990.0,0.06336]
[1752941746544,1.68973596,118000.0,117990.0,0.06336]
[1752941746944,1.3639877,118000.0,117990.0,0.2327946]